[Event "Hungarian Youth-ch U12 2022"]
[Site "Eger"]
[Date "2022.07.31"]
[Round "9.4"]
[White "Janosi, Bence"]
[Black "Juhasz, Edmond"]
[Result "1-0"]
[ECO "D15"]
[WhiteElo "1428"]
[BlackElo "1510"]
[Annotator "NA RC"]
[PlyCount "49"]
[EventDate "2022.07.21"]
[EventType "tourn"]
[EventCountry "HUN"]
[SourceTitle "playchess.com"]
[Source "ChessBase"]
[SourceQuality "1"]
[TimeControl "40/5400+30:1800+30"]

1. d4 {[%emt 0:00:35]} d5 {[%emt 0:00:37]} 2. c4 {[%emt 0:00:07]} c6 {[%emt 0:00:14]} 3. Nc3 {[%emt 0:00:07]} Nf6 {[%emt 0:00:08]} 4. Nf3 {[%emt 0:00:24]} Bf5 {[%emt 0:00:33]} 5. Bf4 {[%emt 0:00:14]} e6 {[%emt 0:00:30]} 6. e3 {[%emt 0:00:14]} Bd6 {[%emt 0:01:02]} 7. Bg3 {[%emt 0:00:27]} Bxg3 {[%emt 0:00:51]} 8. hxg3 {[%emt 0:00:09]} Nbd7 {[%emt 0:00:34]} 9. Bd3 {[%emt 0:00:44]} Bxd3 {[%emt 0:02:00]} 10. Qxd3 {[%emt 0:00:44]} Qe7 {[%emt 0:02:17]} 11. O-O-O {[%emt 0:04:48]} O-O-O {[%emt 0:03:21]} 12. e4 {[%emt 0:02:46]} dxe4 {[%emt 0:02:28]} 13. Nxe4 {[%emt 0:00:55]} Nxe4 {[%emt 0:00:14]} 14. Qxe4 {[%emt 0:00:24]} Qb4 {[%emt 0:02:47]} 15. Qc2 {[%emt 0:02:43]} h6 {[%emt 0:02:32]} 16. Kb1 {[%emt 0:01:19]} Nb6 {[%emt 0:05:22]} 17. Ne5 {[%emt 0:03:11]} Rhf8 {[%emt 0:01:31]} 18. a3 {[%emt 0:09:11]} Qe7 {[%emt 0:00:59]} 19. c5 {[%emt 0:01:46]} Nd7 {[%emt 0:05:28]} 20. Nc4 {[%emt 0:02:15]} Nf6 {[%emt 0:01:29]} 21. Qa4 {[%emt 0:03:43]} Kb8 {[%emt 0:04:02]} 22. Rd3 {[%emt 0:02:00]} Ne8 {[%emt 0:04:37]} 23. Na5 {[%emt 0:01:21]} Ka8 {[%emt 0:05:37]} 24. Rb3 {[%emt 0:00:18]} Rd7 {[%emt 0:02:02]} 25. Nxc6 {[%emt 0:00:24]} 1-0

[Event "Hungarian Youth-ch U12 2022"]
[Site "Eger"]
[Date "2022.07.31"]
[Round "9.5"]
[White "Kovacs, Kristof"]
[Black "Onodi, Miklos"]
[Result "1-0"]
[ECO "D02"]
[WhiteElo "1812"]
[BlackElo "1901"]
[Annotator "RC"]
[PlyCount "65"]
[EventDate "2022.07.21"]
[EventType "tourn"]
[EventCountry "HUN"]
[SourceTitle "playchess.com"]
[Source "ChessBase"]
[SourceQuality "1"]
[TimeControl "40/5400+30:1800+30"]

1. Nf3 {[%emt 0:00:33]} d5 {[%emt 0:00:33]} 2. d4 {[%emt 0:00:13]} Nf6 {[%emt 0:00:05]} 3. g3 {[%emt 0:00:13]} Bf5 {[%emt 0:00:06]} 4. Bg2 {[%emt 0:00:15]} e6 {[%emt 0:00:07]} 5. O-O {[%emt 0:00:20]} Be7 {[%emt 0:00:11]} 6. b3 {[%emt 0:00:17]} h5 {[%emt 0:00:58]} 7. Nbd2 {[%emt 0:03:21]} Ne4 {[%emt 0:01:05]} 8. Bb2 {[%emt 0:01:14]} Nd7 {[%emt 0:11:51]} 9. Ne5 {[%emt 0:05:27]} f6 {[%emt 0:21:28]} 10. Nxd7 {[%emt 0:01:38]} Qxd7 {[%emt 0:00:21]} 11. f3 {[%emt 0:00:20]} Nd6 {[%emt 0:10:44]} 12. e4 {[%emt 0:02:19]} dxe4 {[%emt 0:00:13]} 13. fxe4 {[%emt 0:00:14]} Bg4 {[%emt 0:00:30]} 14. Qe1 {[%emt 0:00:21]} h4 {[%emt 0:02:56]} 15. h3 {[%emt 0:00:36]} Bh5 {[%emt 0:00:40]} 16. g4 {[%emt 0:00:20]} Bg6 {[%emt 0:01:03]} 17. c4 {[%emt 0:03:58]} f5 {[%emt 0:01:50]} 18. e5 {[%emt 0:02:23]} Nf7 {[%emt 0:01:08]} 19. gxf5 {[%emt 0:00:39]} Bxf5 {[%emt 0:03:46]} 20. Rxf5 {[%emt 0:00:27]} exf5 {[%emt 0:00:01]} 21. e6 {[%emt 0:00:09]} Qd6 {[%emt 0:00:52]} 22. exf7+ {[%emt 0:01:23]} Kxf7 {[%emt 0:00:07]} 23. Qe5 {[%emt 0:04:01]} Qxe5 {[%emt 0:01:09]} 24. dxe5 {[%emt 0:00:06]} c6 {[%emt 0:00:16]} 25. Re1 {[%emt 0:00:11]} Bb4 {[%emt 0:01:06]} 26. Re2 {[%emt 0:00:34]} Rad8 {[%emt 0:00:38]} 27. Nf3 {[%emt 0:00:24]} Rd1+ {[%emt 0:00:29]} 28. Kh2 {[%emt 0:00:14]} Ke6 {[%emt 0:01:16]} 29. Nd4+ {[%emt 0:00:23]} Ke7 {[%emt 0:00:56]} 30. Nxf5+ {[%emt 0:00:09]} Kf8 {[%emt 0:01:07]} 31. Bf3 {[%emt 0:00:28]} g6 {[%emt 0:00:42]} 32. e6 {[%emt 0:00:12]} Rh7 {[%emt 0:04:13]} 33. e7+ {[%emt 0:00:29]} 1-0

[Event "Hungarian Youth-ch U12 2022"]
[Site "Eger"]
[Date "2022.07.31"]
[Round "9.7"]
[White "Kiss, Inez"]
[Black "Balazs, Szabina Zoe"]
[Result "0-1"]
[ECO "C03"]
[WhiteElo "1397"]
[BlackElo "1437"]
[Annotator "NA RC"]
[PlyCount "102"]
[EventDate "2022.07.21"]
[EventType "tourn"]
[EventCountry "HUN"]
[SourceTitle "playchess.com"]
[Source "ChessBase"]
[SourceQuality "1"]
[TimeControl "40/5400+30:1800+30"]

1. e4 {[%emt 0:00:32]} e6 {[%emt 0:00:53]} 2. d4 {[%emt 0:00:04]} d5 {[%emt 0:00:20]} 3. Nd2 {[%emt 0:00:03]} h6 {[%emt 0:00:22]} 4. e5 {[%emt 0:00:37]} c5 {[%emt 0:00:46]} 5. c3 {[%emt 0:00:20]} Nd7 {[%emt 0:00:41]} 6. Bd3 {[%emt 0:00:57]} Ne7 {[%emt 0:00:58]} 7. Ne2 {[%emt 0:00:51]} Nc6 {[%emt 0:01:32]} 8. Nf3 {[%emt 0:00:24]} a5 {[%emt 0:05:32]} 9. a4 {[%emt 0:00:56]} b6 {[%emt 0:05:12]} 10. O-O {[%emt 0:02:09]} g5 {[%emt 0:04:15]} 11. Nd2 {[%emt 0:04:46]} Bb7 {[%emt 0:01:31]} 12. f4 {[%emt 0:00:57]} Qe7 {[%emt 0:05:19]} 13. f5 {[%emt 0:02:08]} O-O-O {[%emt 0:00:47]} 14. f6 {[%emt 0:00:35]} Qe8 {[%emt 0:00:36]} 15. Bb5 {[%emt 0:01:43]} Na7 {[%emt 0:02:15]} 16. Bxd7+ {[%emt 0:00:20]} Qxd7 {[%emt 0:00:47]} 17. b3 {[%emt 0:01:50]} Ba6 {[%emt 0:01:25]} 18. Re1 {[%emt 0:01:20]} Nc6 {[%emt 0:02:45]} 19. Ba3 {[%emt 0:04:33]} Qb7 {[%emt 0:05:52]} 20. Qc2 {[%emt 0:09:43]} Kb8 {[%emt 0:01:02]} 21. dxc5 {[%emt 0:09:49]} bxc5 {[%emt 0:02:08]} 22. Ng3 {[%emt 0:10:54]} Qc7 {[%emt 0:07:29]} 23. Qb1 {[%emt 0:12:45]} Ka8 {[%emt 0:07:07]} 24. Kh1 {[%emt 0:06:29]} Nxe5 {[%emt 0:02:17]} 25. Rc1 {[%emt 0:05:32]} Qb8 {[%emt 0:09:20]} 26. Qc2 {[%emt 0:07:16]} Rc8 {[%emt 0:06:38]} 27. c4 {[%emt 0:02:20]} d4 {[%emt 0:02:16]} 28. Re1 {[%emt 0:01:13]} Bd6 {[%emt 0:02:59]} 29. Nde4 {[%emt 0:01:45]} Nd7 {[%emt 0:02:10]} 30. Nxd6 {[%emt 0:00:42]} Qxd6 {[%emt 0:00:37]} 31. Ne4 {[%emt 0:00:43]} Qb6 {[%emt 0:00:48]} 32. Qd3 {[%emt 0:01:33]} Bb7 {[%emt 0:01:10]} 33. Qg3 {[%emt 0:00:41]} Bxe4 {[%emt 0:01:15]} 34. Rxe4 {[%emt 0:00:29]} Nxf6 {[%emt 0:00:20]} 35. Ree1 {[%emt 0:00:39]} Qc6 {[%emt 0:01:15]} 36. Qf2 {[%emt 0:01:14]} Nh5 {[%emt 0:00:33]} 37. Bxc5 {[%emt 0:01:56]} Qxc5 {[%emt 0:02:14]} 38. Qf3+ {[%emt 0:00:10]} Qc6 {[%emt 0:00:11]} 39. Qxh5 {[%emt 0:00:10]} f5 {[%emt 0:00:51]} 40. Qe2 {[%emt 0:00:00]} Rhe8 {[%emt 0:00:00]} 41. Qh5 {[%emt 0:03:32]} e5 {[%emt 0:01:20]} 42. Qf7 {[%emt 0:00:54]} Qe6 {[%emt 0:00:55]} 43. Qh5 {[%emt 0:00:56]} e4 {[%emt 0:00:39]} 44. Qd1 {[%emt 0:00:53]} d3 {[%emt 0:01:15]} 45. Qd2 {[%emt 0:00:30]} Qb6 {[%emt 0:00:46]} 46. Rf1 {[%emt 0:01:15]} Re5 {[%emt 0:01:21]} 47. Qc3 {[%emt 0:00:28]} Qd6 {[%emt 0:02:09]} 48. Rad1 {[%emt 0:00:58]} Rd8 {[%emt 0:01:09]} 49. Rfe1 {[%emt 0:01:04]} Qd4 {[%emt 0:01:08]} 50. Qd2 {[%emt 0:04:19]} e3 {[%emt 0:01:07]} 51. Qa2 {[%emt 0:02:44]} d2 {[%emt 0:00:34]} 0-1

[Event "Hungarian Youth-ch U12 2022"]
[Site "Eger"]
[Date "2022.07.31"]
[Round "9.8"]
[White "Biro, Beata"]
[Black "Balogh, Gerda"]
[Result "0-1"]
[ECO "C44"]
[WhiteElo "1551"]
[BlackElo "1531"]
[Annotator "NA RC"]
[PlyCount "68"]
[EventDate "2022.07.21"]
[EventType "tourn"]
[EventCountry "HUN"]
[SourceTitle "playchess.com"]
[Source "ChessBase"]
[SourceQuality "1"]
[TimeControl "40/5400+30:1800+30"]

1. e4 {[%emt 0:00:34]} e5 {[%emt 0:00:55]} 2. d4 {[%emt 0:00:08]} exd4 {[%emt 0:01:17]} 3. Nf3 {[%emt 0:00:07]} Nc6 {[%emt 0:04:40]} 4. Nxd4 {[%emt 0:00:10]} Nf6 {[%emt 0:00:47]} 5. Bb5 {[%emt 0:00:18]} Nxe4 {[%emt 0:02:04]} 6. O-O {[%emt 0:00:12]} Nd6 {[%emt 0:13:35]} 7. Bxc6 {[%emt 0:00:22]} dxc6 {[%emt 0:00:34]} 8. Re1+ {[%emt 0:00:07]} Be7 {[%emt 0:00:55]} 9. Qe2 {[%emt 0:01:19]} c5 {[%emt 0:07:02]} 10. Nb3 {[%emt 0:01:12]} Nf5 {[%emt 0:00:53]} 11. Bg5 {[%emt 0:02:20]} f6 {[%emt 0:01:33]} 12. Bf4 {[%emt 0:01:20]} Kf7 {[%emt 0:14:37]} 13. Qc4+ {[%emt 0:02:05]} Kf8 {[%emt 0:01:10]} 14. Nc3 {[%emt 0:02:04]} g5 {[%emt 0:18:28]} 15. Rad1 {[%emt 0:02:20]} Qe8 {[%emt 0:00:58]} 16. Bxc7 {[%emt 0:01:20]} Qf7 {[%emt 0:00:33]} 17. Nd5 {[%emt 0:02:45]} Be6 {[%emt 0:03:15]} 18. Qe4 {[%emt 0:03:14]} Bxd5 {[%emt 0:01:26]} 19. Rxd5 {[%emt 0:00:24]} Nh6 {[%emt 0:00:47]} 20. Rd7 {[%emt 0:01:36]} Re8 {[%emt 0:03:22]} 21. Bd6 {[%emt 0:03:29]} Bxd6 {[%emt 0:02:57]} 22. Rxf7+ {[%emt 0:00:10]} Kxf7 {[%emt 0:00:16]} 23. Qxb7+ {[%emt 0:00:08]} Kg6 {[%emt 0:00:44]} 24. Rxe8 {[%emt 0:00:36]} Rxe8 {[%emt 0:00:02]} 25. g3 {[%emt 0:00:27]} g4 {[%emt 0:01:57]} 26. Qd7 {[%emt 0:00:54]} Re1+ {[%emt 0:00:42]} 27. Kg2 {[%emt 0:00:07]} Be5 {[%emt 0:00:10]} 28. Nxc5 {[%emt 0:00:53]} Nf5 {[%emt 0:02:13]} 29. Qe8+ {[%emt 0:01:50]} Kg5 {[%emt 0:00:49]} 30. Ne6+ {[%emt 0:00:18]} Kh6 {[%emt 0:00:32]} 31. Qf8+ {[%emt 0:00:10]} Kh5 {[%emt 0:01:49]} 32. Nf4+ {[%emt 0:01:54]} Bxf4 {[%emt 0:00:53]} 33. gxf4 {[%emt 0:00:08]} Nh4+ {[%emt 0:00:22]} 34. Kg3 {[%emt 0:00:24]} Rg1# {[%emt 0:00:14]} 0-1